bitfinex/quotes_SOLUSD_20251019
["timestamp","ask_amount","ask_price","bid_price","bid_amount"]
[1760892603882,0.69,191.62,191.58,42.59951175]
[1760892604181,0.1,191.62,191.59,0.7]
[1760892604346,0.1,191.62,191.6,0.7]
[1760892604549,0.1,191.62,191.6,5.91904375]
[1760892605256,0.1,191.62,191.61,0.7]
[1760892605472,0.1,191.62,191.6,5.91904375]
[1760892605972,0.1,191.62,191.58,43.29951679]
[1760892606353,2.96390138,191.62,191.58,42.59951679]
[1760892606775,0.1,191.62,191.58,5.21951679]
[1760892606962,0.1,191.62,191.58,5.91951679]
[1760892607555,0.1,191.62,191.58,8.19341817]
[1760892607965,0.1,191.62,191.6,2.27390138]
[1760892608163,2.37390138,191.68,191.61,60.2]
[1760892608469,2.37390138,191.68,191.62,0.7]
[1760892608470,2.27390138,191.67,191.62,0.7]
[1760892608671,2.27390138,191.66,191.63,5.2183896]
[1760892609048,2.27390138,191.66,191.63,5.9183896]
[1760892609252,0.1,191.68,191.64,2.27390138]
[1760892609880,0.1,191.68,191.64,7.49197399]
[1760892610187,0.69,191.68,191.64,7.49197399]
[1760892610795,0.69,191.68,191.64,8.76129846]
[1760892611092,0.1,191.68,191.64,9.46129846]
[1760892611796,0.1,191.68,191.64,8.76129846]
[1760892613094,0.1,191.68,191.64,9.46129846]
[1760892613576,0.1,191.68,191.65,3.54322585]
[1760892614590,0.1,191.68,191.65,8.76102815]
[1760892616297,0.1,191.68,191.65,9.47102815]
[1760892616596,0.1,191.68,191.65,3.54322585]
[1760892617702,0.1,191.68,191.65,4.25322585]
[1760892618380,0.1,191.68,191.65,9.47104163]
[1760892619894,0.1,191.68,191.65,8.76104163]
[1760892620086,0.1,191.68,191.66,0.71]
[1760892620288,0.1,191.68,191.65,8.76104163]
[1760892620604,0.1,191.68,191.65,9.47104163]
[1760892621393,0.1,191.68,191.66,3.54322585]
[1760892621909,0.1,191.68,191.66,4.25322585]
[1760892623086,0.1,191.68,191.66,3.54322585]
[1760892623304,0.1,191.68,191.67,4.25322585]
[1760892623684,0.1,191.68,191.67,3.54322585]
[1760892624003,0.1,191.68,191.67,4.25322585]
[1760892625401,0.1,191.68,191.67,9.47052641]
[1760892626116,0.1,191.68,191.67,5.48052641]
[1760892628233,0.1,191.68,191.67,6.19052641]
[1760892628710,0.1,191.68,191.67,0.97322585]
[1760892630312,0.1,191.68,191.67,0.26322585]
[1760892632786,0.77,191.68,191.65,3.54322585]
[1760892633012,0.67,191.67,191.61,60.2]
[1760892633201,5.98702838,191.68,191.65,3.54322585]
[1760892633401,5.31702838,191.68,191.65,3.54322585]
[1760892633794,5.98702838,191.68,191.65,3.54322585]
[1760892634115,5.98702838,191.68,191.64,3.54322585]
[1760892634313,5.98702838,191.68,191.64,4.25322585]
[1760892635512,0.67,191.67,191.64,3.54322585]
[1760892636396,5.21757278,191.66,191.63,3.54322585]
[1760892636700,5.88757278,191.66,191.64,0.5]
[1760892637317,0.67,191.65,191.64,0.5]
[1760892637913,5.88784503,191.65,191.64,0.5]
[1760892638115,9.43107088,191.65,191.64,0.5]
[1760892638803,22.47568345,191.65,191.58,0.71]
[1760892639120,3.54322585,191.64,191.58,0.71]
[1760892639318,3.54322585,191.62,191.56,0.71]
[1760892639621,3.54322585,191.59,191.53,0.71]
[1760892639810,3.54322585,191.57,191.53,0.71]
[1760892640014,5.22029651,191.56,191.53,0.71]
[1760892640317,5.22029651,191.56,191.51,3.54322585]
[1760892640524,5.22029651,191.56,191.52,0.71]
[1760892640696,5.22029651,191.56,191.5,57.6]
[1760892640697,5.21999347,191.58,191.54,3.54322585]
[1760892641020,5.21999347,191.58,191.56,3.54322585]
[1760892641211,5.21999347,191.58,191.54,0.71]
[1760892641533,9.43321932,191.58,191.54,0.71]
[1760892641734,5.88999347,191.58,191.54,0.71]
[1760892642023,3.54322585,191.56,191.52,0.71]
[1760892642399,3.54322585,191.57,191.53,0.71]
[1760892642726,8.76321932,191.58,191.53,3.54322585]
[1760892643018,8.76321932,191.58,191.54,0.71]
[1760892643525,8.76321932,191.58,191.55,0.71]
[1760892643831,3.54322585,191.56,191.53,0.71]
[1760892644613,5.21999347,191.58,191.54,0.71]
[1760892644831,8.76321932,191.58,191.54,0.71]
[1760892645005,3.54322585,191.57,191.54,0.71]
[1760892645206,3.54322585,191.57,191.52,4.25322585]
[1760892645414,3.54322585,191.57,191.53,0.71]
[1760892645802,8.76352236,191.56,191.51,8.76486243]
[1760892646009,8.76352236,191.56,191.52,0.71]
[1760892646241,3.54322585,191.55,191.52,0.71]
[1760892646607,3.54322585,191.55,191.53,0.71]
[1760892647527,3.54322585,191.56,191.53,0.71]
[1760892647726,3.54322585,191.57,191.53,0.71]
[1760892648232,5.9400018,191.58,191.53,0.71]
[1760892648233,18.98938064,191.58,191.53,0.71]
[1760892648414,3.54322585,191.56,191.51,4.25322585]
[1760892648733,3.54322585,191.56,191.52,0.71]
[1760892649233,5.22056904,191.55,191.52,0.71]
[1760892650033,4.26322585,191.56,191.52,0.71]
[1760892650236,5.94035295,191.56,191.52,0.71]
[1760892650431,9.4835788,191.56,191.52,0.71]
[1760892652923,9.43578748,191.56,191.52,0.71]
[1760892654637,3.54322585,191.55,191.5,5.93192059]
[1760892654815,3.54322585,191.55,191.51,0.71]
[1760892655415,4.26322585,191.55,191.51,0.71]
[1760892655628,0.72,191.54,191.5,8.76514644]
[1760892655832,0.72,191.54,191.5,9.47514644]
[1760892656224,8.76390419,191.55,191.51,0.71]
[1760892656424,9.48390419,191.55,191.51,0.71]
[1760892657020,8.76390419,191.55,191.5,8.76514644]
[1760892657216,0.72,191.57,191.52,4.25322585]
[1760892657524,9.48243253,191.6,191.54,3.54322585]
[1760892657728,9.48243253,191.6,191.54,0.71]
[1760892657729,3.54322585,191.59,191.54,0.71]
[1760892658037,0.72,191.58,191.52,3.54322585]
[1760892658336,4.26322585,191.57,191.52,0.71]
[1760892658536,3.54322585,191.55,191.5,8.76513792]
[1760892658741,4.26322585,191.55,191.5,5.22191207]
[1760892658919,4.26322585,191.55,191.51,0.71]
[1760892659510,4.26322585,191.54,191.5,5.22191207]
[1760892659714,3.54322585,191.52,191.49,0.71]
[1760892659916,4.26322585,191.51,191.46,16.80949285]
[1760892660134,4.26322585,191.51,191.47,0.71]
[1760892660528,3.54322585,191.51,191.48,0.71]
[1760892660737,3.54322585,191.51,191.46,19.6427187]
[1760892661042,3.54322585,191.51,191.47,5.93272917]
[1760892661544,3.54322585,191.52,191.48,0.71]
[1760892661832,3.54322585,191.52,191.47,5.22272917]
[1760892662038,4.26322585,191.51,191.47,5.22272917]
[1760892662241,3.54322585,191.53,191.48,0.71]
[1760892662426,5.21975153,191.58,191.49,0.71]
[1760892662628,0.72,191.57,191.53,3.54322585]
[1760892662833,3.54322585,191.57,191.5,60.79]
[1760892663034,13.04812112,191.6,191.5,60.79]
[1760892663035,3.54322585,191.55,191.5,60.79]
[1760892663260,3.54322585,191.54,191.5,37.91]
[1760892663651,4.26322585,191.55,191.5,37.91]
[1760892664137,3.54322585,191.56,191.51,4.25322585]
[1760892664352,4.26322585,191.57,191.52,4.25322585]
[1760892664553,4.26322585,191.57,191.53,0.71]
[1760892664752,3.54322585,191.58,191.53,3.54322585]
[1760892664957,13.04631097,191.63,191.55,3.54322585]
[1760892665119,3.54322585,191.6,191.55,3.54322585]
[1760892665319,3.54322585,191.59,191.55,0.71]
[1760892665779,0.72,191.6,191.55,0.71]
[1760892666046,3.54322585,191.59,191.55,0.71]
[1760892666240,4.26322585,191.59,191.55,0.71]
[1760892667050,3.54322585,191.59,191.56,0.71]
[1760892667251,0.72,191.61,191.55,3.54322585]
[1760892667547,3.54322585,191.62,191.57,26.42322585]
[1760892667756,4.26322585,191.62,191.58,0.71]
[1760892668054,4.26322585,191.61,191.56,0.71]
[1760892669366,0.72,191.61,191.56,8.76330622]
[1760892669568,4.26322585,191.63,191.57,4.25322585]
[1760892670571,37.2,191.67,191.6,3.54322585]
[1760892670572,0.72,191.66,191.6,3.54322585]
[1760892670864,4.36322585,191.68,191.62,3.54322585]
[1760892671162,0.1,191.68,191.64,3.54322585]
[1760892671342,0.1,191.68,191.65,5.21784503]
[1760892672039,0.1,191.68,191.64,9.44131906]
[1760892672752,0.1,191.68,191.65,0.68]
[1760892673161,0.1,191.68,191.65,8.16516919]
[1760892673564,0.1,191.68,191.65,5.89781778]
[1760892673737,0.1,191.68,191.66,0.68]
[1760892673941,0.1,191.68,191.67,2.26735141]
[1760892674377,0.1,191.68,191.66,2.92735141]
[1760892674558,0.1,191.68,191.67,2.26735141]
[1760892674959,0.1,191.68,191.67,2.92735141]
[1760892675162,0.1,191.68,191.67,19.02112718]
[1760892678860,0.1,191.68,191.67,41.24112718]
[1760892679052,0.1,191.68,191.67,76.15377577]
[1760892679463,0.1,191.68,191.67,65.27730056]
[1760892679642,0.1,191.68,191.65,15.31180939]
[1760892679643,3.02735141,191.68,191.63,5.2183896]
[1760892679842,2.26735141,191.64,191.59,0.66]
[1760892680061,2.26735141,191.64,191.6,37.82]
[1760892680256,0.66,191.66,191.6,40.08735141]
[1760892680457,0.66,191.66,191.61,0.66]
[1760892680948,0.66,191.65,191.61,5.21870116]
[1760892683769,0.66,191.64,191.6,37.16]
[1760892683946,0.66,191.66,191.6,0.66]
[1760892684276,0.66,191.65,191.6,0.66]
[1760892684578,0.66,191.65,191.59,39.42735141]
[1760892684870,2.92735141,191.65,191.61,0.66]
[1760892685070,5.21730056,191.67,191.58,41.14910059]
[1760892685071,2.26735141,191.62,191.58,28.09972175]
[1760892685259,2.92735141,191.62,191.58,5.21972175]
[1760892685574,2.92735141,191.62,191.57,37.82]
[1760892685575,0.66,191.61,191.57,42.38000411]
[1760892686067,2.26735141,191.62,191.57,42.38000411]
[1760892686377,2.26735141,191.58,191.5,0.66]
[1760892686577,2.26735141,191.55,191.5,0.66]
[1760892686876,2.92735141,191.55,191.5,0.66]
[1760892687046,0.66,191.55,191.5,2.92735141]
[1760892687248,2.92735141,191.58,191.52,2.26735141]
[1760892687449,2.92735141,191.58,191.51,0.66]
[1760892687670,2.26735141,191.56,191.51,0.66]
[1760892687863,2.26735141,191.56,191.5,7.48925275]
[1760892688048,2.26735141,191.56,191.51,2.92735141]
[1760892688248,2.26735141,191.57,191.52,0.66]
[1760892688462,2.92735141,191.57,191.52,0.66]
[1760892688675,0.66,191.56,191.52,0.66]
[1760892689274,0.66,191.56,191.52,5.88114649]
[1760892689570,2.92735141,191.56,191.52,5.88114649]
[1760892689768,2.26735141,191.55,191.52,5.22114649]
[1760892690975,2.26735141,191.55,191.51,5.22165944]
[1760892691167,2.26735141,191.55,191.51,5.88165944]
[1760892691365,2.26735141,191.52,191.51,22.88]
[1760892691567,2.26735141,191.52,191.49,22.88]
[1760892691869,0.66,191.54,191.5,22.88]
[1760892692375,2.26735141,191.53,191.5,22.88]
[1760892692676,2.92735141,191.53,191.5,22.88]
[1760892692851,2.26735141,191.52,191.5,22.88]
[1760892693058,2.26735141,191.52,191.5,28.10187238]
[1760892693976,2.26735141,191.52,191.5,5.22187238]
[1760892694274,2.92735141,191.53,191.5,5.22187238]
[1760892695271,0.66,191.53,191.5,5.22187238]
[1760892695476,2.92735141,191.53,191.5,5.22187238]
[1760892695678,2.26735141,191.52,191.48,5.22221679]
[1760892695974,0.66,191.53,191.48,5.88221679]
[1760892695975,2.92735141,191.53,191.48,5.88221679]
[1760892696279,2.92735141,191.53,191.49,0.66]
[1760892697071,2.92735141,191.53,191.5,5.22193211]
[1760892697975,2.92735141,191.53,191.49,0.66]
[1760892698178,2.26735141,191.52,191.49,0.66]
[1760892698874,2.26735141,191.52,191.47,22.88]
[1760892699077,2.26735141,191.52,191.48,0.66]
[1760892699272,2.92735141,191.52,191.48,0.66]
[1760892699857,2.92735141,191.52,191.47,22.88]
[1760892700065,2.92735141,191.52,191.47,23.54]
[1760892700273,2.26735141,191.52,191.48,0.66]
[1760892700464,2.26735141,191.52,191.48,5.88231733]
[1760892701967,2.26735141,191.52,191.49,5.88218029]
[1760892702277,2.26735141,191.5,191.43,5.88382424]
[1760892702458,2.26735141,191.47,191.43,5.88382424]
[1760892702660,2.26735141,191.45,191.42,60.26]
[1760892702980,2.26735141,191.45,191.42,37.38]
[1760892703166,2.26735141,191.44,191.42,37.38]
[1760892703360,2.26735141,191.44,191.42,0.2]
[1760892703580,2.92735141,191.43,191.42,0.2]
[1760892703784,2.26735141,191.43,191.42,0.2]
[1760892703970,2.26735141,191.44,191.42,0.2]
[1760892704167,2.94735141,191.44,191.42,0.2]
[1760892704965,0.68,191.43,191.42,0.2]
[1760892705667,2.94735141,191.43,191.42,0.2]
[1760892706070,0.68,191.43,191.42,0.2]
[1760892706280,2.94735141,191.43,191.42,0.2]
[1760892708891,0.68,191.43,191.42,0.2]
[1760892709067,2.94735141,191.43,191.42,0.2]
[1760892710385,2.26735141,191.46,191.42,0.86]
[1760892710605,2.26735141,191.47,191.43,0.66]
[1760892712173,2.26735141,191.47,191.42,5.42390813]
[1760892712373,2.26735141,191.47,191.43,0.66]
[1760892712677,5.90270751,191.48,191.44,0.66]
[1760892712678,5.22270751,191.48,191.44,0.66]
[1760892712889,2.26735141,191.46,191.42,0.2]
[1760892713268,2.26735141,191.45,191.42,0.2]
[1760892713672,2.94735141,191.44,191.42,0.2]
[1760892714107,2.26735141,191.44,191.42,0.2]
[1760892714592,2.26735141,191.47,191.43,0.66]
[1760892714798,7.4901294,191.47,191.43,0.66]
[1760892715095,7.4901294,191.47,191.42,5.42408572]
[1760892715096,0.68,191.46,191.42,5.42408572]
[1760892715281,7.4901294,191.47,191.43,0.66]
[1760892715482,8.1701294,191.47,191.43,0.66]
[1760892715688,8.1701294,191.47,191.42,5.42408572]
[1760892715896,8.1701294,191.47,191.43,0.66]
[1760892716193,2.26735141,191.47,191.43,0.66]
[1760892718392,2.26735141,191.47,191.42,7.69143713]
[1760892718593,2.26735141,191.47,191.44,0.66]
[1760892718793,2.26735141,191.48,191.45,0.66]
[1760892718973,7.48953849,191.5,191.45,0.66]
[1760892719291,2.94735141,191.49,191.43,8.15119302]
[1760892719495,2.94735141,191.48,191.43,5.88384161]
[1760892719679,2.26735141,191.47,191.43,0.66]
[1760892720191,0.68,191.47,191.42,5.4239393]
[1760892720403,0.68,191.51,191.43,0.66]
[1760892720613,8.16846559,191.53,191.47,7.49010171]
[1760892720813,8.16846559,191.53,191.47,5.8827503]
[1760892721109,2.26735141,191.5,191.45,5.22306724]
[1760892721282,2.26735141,191.48,191.43,37.84]
[1760892721599,0.68,191.47,191.43,0.66]
[1760892721779,0.68,191.47,191.42,25.34735141]
[1760892721780,0.68,191.46,191.42,0.2]
[1760892721979,2.26735141,191.46,191.42,0.2]
[1760892722190,0.68,191.45,191.42,0.2]
[1760892722395,2.26735141,191.46,191.42,0.2]
[1760892722804,2.26735141,191.46,191.43,0.66]
[1760892723007,5.2225173,191.48,191.42,5.42406847]
[1760892723311,5.9025173,191.48,191.43,0.66]
[1760892723506,2.26735141,191.47,191.43,0.66]
[1760892724411,0.68,191.51,191.45,2.26735141]
[1760892724609,0.68,191.51,191.43,5.22364924]
[1760892724610,2.26735141,191.49,191.43,8.15100065]
[1760892724915,2.94735141,191.48,191.43,5.88364924]
[1760892725214,0.68,191.48,191.43,7.49100065]
[1760892725509,0.68,191.48,191.44,0.66]
[1760892725708,0.68,191.5,191.45,0.66]
[1760892725891,0.68,191.49,191.45,0.66]
[1760892726091,0.68,191.49,191.44,7.49077215]
[1760892726092,2.94735141,191.49,191.44,5.22342074]
[1760892726294,2.94735141,191.49,191.44,5.88342074]
[1760892727223,2.94735141,191.49,191.45,0.66]
[1760892727712,2.26735141,191.49,191.45,0.66]
[1760892728016,2.94735141,191.49,191.45,0.66]
[1760892728332,2.94735141,191.49,191.45,5.88313227]
[1760892729614,2.94735141,191.52,191.46,2.92735141]
[1760892729816,2.94735141,191.52,191.47,0.66]
[1760892729997,2.94735141,191.52,191.48,0.66]
[1760892730516,0.68,191.52,191.48,0.66]
[1760892730813,0.69,191.51,191.46,2.96735141]
[1760892731011,2.95735141,191.5,191.44,21.249842]
[1760892731216,2.26735141,191.49,191.44,18.98249059]
[1760892731415,2.26735141,191.48,191.44,18.28249059]
[1760892731713,2.26735141,191.49,191.45,0.7]
[1760892732295,2.95735141,191.49,191.45,0.7]
[1760892732513,2.26735141,191.49,191.46,5.22302308]
[1760892732809,3.55006721,191.51,191.47,0.7]
[1760892732988,4.24006721,191.52,191.48,0.7]
[1760892733192,0.69,191.52,191.48,4.25006721]
[1760892733506,4.24006721,191.54,191.49,0.7]
[1760892733699,3.55006721,191.55,191.5,4.25006721]
[1760892734011,3.55006721,191.54,191.47,11.58647521]
[1760892734219,4.23006721,191.53,191.48,0.71]
[1760892734521,4.23006721,191.53,191.49,0.71]
[1760892735116,3.55006721,191.52,191.46,44.710648]
[1760892735423,4.23006721,191.52,191.47,0.71]
[1760892735593,4.23006721,191.52,191.48,0.71]
[1760892736114,4.23006721,191.51,191.46,5.22302308]
[1760892736329,4.23006721,191.5,191.46,5.22302308]
[1760892737219,0.68,191.49,191.46,5.22302308]
[1760892737415,4.23006721,191.49,191.46,5.22302308]
[1760892737809,4.23006721,191.49,191.45,37.18]
[1760892738421,4.23006721,191.49,191.45,37.89]
[1760892739314,3.55006721,191.46,191.42,0.2]
[1760892739515,3.55006721,191.45,191.42,0.2]
[1760892739700,3.55006721,191.45,191.42,0.91]
[1760892740418,3.55006721,191.46,191.42,6.13396292]
[1760892740623,3.55006721,191.48,191.43,4.26006721]
[1760892740923,3.55006721,191.49,191.44,0.71]
[1760892741123,3.55006721,191.49,191.44,4.26006721]
[1760892741426,3.55006721,191.49,191.45,0.71]
[1760892741734,0.68,191.48,191.42,0.2]
[1760892741893,3.55006721,191.45,191.42,0.2]
[1760892742098,0.68,191.47,191.42,0.91]
[1760892742321,3.55006721,191.45,191.42,0.91]
[1760892743020,3.55006721,191.44,191.42,0.2]
[1760892743330,3.55006721,191.43,191.42,0.2]
[1760892743501,4.23006721,191.43,191.42,0.2]
[1760892744522,3.55006721,191.48,191.42,4.46006721]
[1760892744825,4.23006721,191.49,191.43,4.26006721]
[1760892745395,0.68,191.52,191.46,3.55006721]
[1760892745595,4.23006721,191.52,191.47,3.55006721]
[1760892745901,4.23006721,191.52,191.47,4.26006721]
[1760892746405,0.68,191.51,191.47,4.26006721]
[1760892746608,0.68,191.51,191.47,9.48280725]
[1760892746837,0.68,191.51,191.47,5.22274004]
[1760892747126,4.23006721,191.51,191.47,5.22274004]
[1760892747510,3.55006721,191.49,191.43,4.26006721]
[1760892747706,3.55006721,191.48,191.43,0.71]
[1760892747909,4.23006721,191.49,191.43,4.26006721]
[1760892748226,3.55006721,191.5,191.45,3.55006721]
[1760892748427,3.55006721,191.5,191.46,5.93280274]
[1760892748630,3.55006721,191.5,191.46,5.22280274]
[1760892748810,3.55006721,191.5,191.47,0.71]
[1760892749310,3.55006721,191.5,191.45,5.22327386]
[1760892749516,4.23006721,191.5,191.45,5.93327386]
[1760892749922,4.23006721,191.49,191.45,5.93327386]
[1760892751505,3.55006721,191.51,191.46,0.71]
[1760892751702,3.55006721,191.51,191.45,5.22327386]
[1760892752031,5.22111418,191.53,191.45,5.93327386]
[1760892752032,4.23006721,191.5,191.45,5.93327386]
[1760892752633,4.23006721,191.49,191.45,5.93327386]
[1760892753808,4.23006721,191.49,191.42,62.71]
[1760892753809,3.55006721,191.47,191.42,62.71]
[1760892754011,4.23006721,191.47,191.43,0.71]
[1760892754524,5.22233504,191.49,191.42,70.77414025]
[1760892754723,3.55006721,191.48,191.44,0.71]
[1760892754926,4.23006721,191.48,191.44,0.71]
[1760892755341,5.22233504,191.49,191.42,62.0]
[1760892755342,3.55006721,191.45,191.42,62.0]
[1760892755525,3.55006721,191.46,191.43,0.71]
[1760892756325,3.55006721,191.46,191.42,67.2238642]
[1760892756517,3.55006721,191.46,191.43,0.71]
[1760892757124,3.55006721,191.46,191.42,67.2238642]
[1760892757125,3.55006721,191.47,191.44,0.71]
[1760892757623,3.55006721,191.47,191.44,62.51]
[1760892757929,3.55006721,191.48,191.44,62.51]
[1760892758133,4.23006721,191.48,191.44,67.73338344]
[1760892759714,4.23006721,191.47,191.44,67.02338344]
[1760892759916,3.55006721,191.47,191.44,61.8]
[1760892760126,4.23006721,191.47,191.44,61.8]
[1760892760838,3.55006721,191.47,191.44,62.51]
[1760892761339,3.55006721,191.47,191.44,67.73342581]
[1760892762730,0.68,191.46,191.44,61.8]
[1760892762930,3.55006721,191.46,191.44,61.8]
[1760892763239,4.23006721,191.47,191.44,61.8]
[1760892763637,4.23006721,191.47,191.43,67.02378371]
[1760892763836,4.23006721,191.47,191.43,67.69378371]
[1760892768043,4.23006721,191.47,191.43,67.02378371]
[1760892768248,4.24006721,191.47,191.44,0.67]
[1760892768446,0.69,191.47,191.44,0.67]
[1760892768747,4.24006721,191.47,191.44,0.67]
[1760892771151,0.69,191.51,191.45,0.67]
[1760892771359,50.21252827,191.54,191.45,66.02006721]
[1760892771559,3.55006721,191.51,191.46,0.67]
[1760892771735,4.24006721,191.51,191.47,0.67]
[1760892772052,50.21252827,191.54,191.45,62.47]
[1760892772053,3.55006721,191.49,191.45,62.47]
[1760892772234,3.55006721,191.49,191.46,0.67]
[1760892773952,4.24006721,191.49,191.46,0.67]
[1760892774151,0.69,191.49,191.46,0.67]
[1760892775253,0.69,191.49,191.46,62.47]
[1760892776051,8.77210058,191.5,191.46,62.47]
[1760892776553,5.91203337,191.5,191.46,62.47]
[1760892776853,5.91203337,191.5,191.47,0.67]
[1760892778378,5.2213868,191.52,191.47,0.67]
[1760892778553,0.69,191.51,191.47,0.67]
[1760892778944,5.91188539,191.51,191.47,0.67]
[1760892779642,9.4619526,191.51,191.47,0.67]
[1760892780233,8.77147395,191.52,191.48,0.67]
[1760892780534,3.55006721,191.51,191.48,0.67]
[1760892780843,4.24006721,191.51,191.48,0.67]
[1760892781042,4.24006721,191.51,191.48,61.8]
[1760892781559,0.69,191.55,191.49,0.67]
[1760892781759,4.24006721,191.54,191.49,0.67]
[1760892781967,4.24006721,191.54,191.5,0.67]
[1760892782668,8.77098939,191.54,191.5,0.67]
[1760892782842,0.69,191.53,191.48,46.58233995]
[1760892783036,4.24006721,191.53,191.49,0.67]
[1760892783364,22.88,191.58,191.52,3.55006721]
[1760892783658,4.24006721,191.58,191.53,0.67]
[1760892783845,0.69,191.58,191.54,0.67]
[1760892784233,4.24006721,191.58,191.54,0.67]
[1760892785633,3.55006721,191.58,191.54,5.22083633]
[1760892785833,3.55006721,191.58,191.55,0.67]
[1760892786231,3.55006721,191.61,191.56,4.22006721]
[1760892786447,3.55006721,191.61,191.57,0.67]
[1760892786659,4.24006721,191.61,191.57,0.67]
[1760892787035,4.24006721,191.61,191.57,5.88988204]
[1760892787436,3.55006721,191.62,191.58,0.67]
[1760892787740,3.55006721,191.62,191.57,5.21988204]
[1760892787741,4.24006721,191.63,191.59,0.67]
[1760892788065,5.21833014,191.64,191.57,5.88988204]
[1760892788066,3.55006721,191.61,191.57,5.88988204]
[1760892788261,4.24006721,191.61,191.57,5.88988204]
[1760892788875,3.55006721,191.62,191.58,0.67]
[1760892789060,4.24006721,191.62,191.58,0.67]
[1760892789456,0.69,191.62,191.58,0.67]
[1760892789971,0.69,191.64,191.59,0.67]
[1760892790135,40.67006721,191.65,191.6,4.22006721]
[1760892790335,40.67006721,191.65,191.61,0.67]
[1760892790336,41.36006721,191.65,191.61,0.67]
[1760892791344,4.24006721,191.65,191.61,0.67]
[1760892791652,3.55006721,191.62,191.53,22.88]
[1760892791958,3.55006721,191.56,191.53,0.68]
[1760892792137,3.55006721,191.56,191.52,22.88]
[1760892792138,3.55006721,191.56,191.54,0.68]
[1760892792539,3.55006721,191.55,191.5,0.68]
[1760892792836,2.271118,191.53,191.5,0.68]
[1760892793042,2.941118,191.53,191.49,42.34194786]
[1760892793242,2.271118,191.53,191.5,0.68]
[1760892793860,2.271118,191.53,191.51,0.68]
[1760892794056,2.271118,191.53,191.49,43.02194786]
[1760892794257,2.271118,191.53,191.5,5.90179595]
[1760892794643,2.271118,191.52,191.51,0.68]
[1760892795045,2.271118,191.52,191.48,0.68]
[1760892795363,2.271118,191.49,191.48,0.68]
[1760892795958,2.271118,191.49,191.46,5.90302308]
[1760892796265,2.271118,191.49,191.47,0.68]
[1760892796654,2.271118,191.49,191.48,0.68]
[1760892796958,2.271118,191.51,191.48,0.68]
[1760892797139,2.271118,191.52,191.49,0.68]
[1760892798740,2.271118,191.54,191.5,0.68]
[1760892799062,2.271118,191.56,191.5,2.951118]
[1760892799265,2.271118,191.55,191.51,0.68]
[1760892799437,2.271118,191.55,191.52,0.68]
[1760892799841,2.271118,191.55,191.52,5.90132391]
[1760892800872,2.271118,191.55,191.51,5.22165944]
[1760892801167,2.271118,191.55,191.52,0.68]
[1760892801569,0.67,191.57,191.52,0.68]
[1760892801570,2.271118,191.56,191.52,0.68]
[1760892801865,2.271118,191.56,191.51,5.22165944]
[1760892801866,2.271118,191.57,191.53,0.68]
[1760892802068,2.271118,191.57,191.54,0.68]
[1760892802262,2.941118,191.6,191.55,2.951118]
[1760892802456,2.941118,191.6,191.56,0.68]
[1760892802663,2.941118,191.6,191.55,64.071118]
[1760892802664,2.271118,191.61,191.57,0.68]
[1760892802961,2.941118,191.6,191.55,67.02055674]
[1760892803376,7.49015335,191.61,191.56,0.68]
[1760892803554,8.16015335,191.61,191.56,0.68]
[1760892804562,0.67,191.6,191.55,67.02055674]
[1760892804769,0.67,191.59,191.55,67.70055674]
[1760892805956,7.49015335,191.61,191.55,67.70055674]
[1760892806146,8.16015335,191.61,191.55,67.70055674]
[1760892808062,5.88867754,191.62,191.56,0.68]
[1760892808274,8.15979554,191.62,191.56,0.68]
[1760892809457,2.271118,191.61,191.56,5.90023515]
[1760892809661,0.67,191.6,191.56,5.90023515]
[1760892810256,2.271118,191.61,191.57,0.68]
[1760892810580,2.271118,191.61,191.57,5.89995831]
[1760892810764,2.941118,191.61,191.57,5.89995831]
[1760892812184,2.271118,191.61,191.56,5.22029651]